[Event "*** Titled Tuesday Blitz"]
[Site "Chess.com"]
[Date "2020.11.03"]
[Round "2"]
[White "Jospem"]
[Black "lefonghua"]
[Result "1-0"]
[WhiteElo "3017"]
[BlackElo "2602"]
[TimeControl "180+1"]
[EndTime "10:20:07 PST"]
[Termination "Jospem won by resignation"]

1. e4 {[%clk 0:02:52.7]} 1... c5 {[%clk 0:02:59.8]} 2. Nf3 {[%clk 0:02:52.7]}
2... g6 {[%clk 0:03:00.3]} 3. d4 {[%clk 0:02:52.3]} 3... cxd4 {[%clk 0:03:01.2]}
4. Nxd4 {[%clk 0:02:52.8]} 4... Bg7 {[%clk 0:03:01.6]} 5. c4 {[%clk 0:02:52.2]}
5... Nc6 {[%clk 0:03:01.5]} 6. Be3 {[%clk 0:02:52.1]} 6... Nf6 {[%clk
0:03:01.3]} 7. Nc3 {[%clk 0:02:52.1]} 7... d6 {[%clk 0:03:00.6]} 8. Be2 {[%clk
0:02:51.5]} 8... O-O {[%clk 0:03:00.8]} 9. O-O {[%clk 0:02:51.4]} 9... Bd7
{[%clk 0:02:58.9]} 10. h3 {[%clk 0:02:47.2]} 10... Nxd4 {[%clk 0:02:55.8]} 11.
Bxd4 {[%clk 0:02:48.1]} 11... Bc6 {[%clk 0:02:56.3]} 12. Qc2 {[%clk 0:02:42.3]}
12... a5 {[%clk 0:02:56.5]} 13. Rad1 {[%clk 0:02:26.1]} 13... Nd7 {[%clk
0:02:53.7]} 14. Bxg7 {[%clk 0:02:22.7]} 14... Kxg7 {[%clk 0:02:54.6]} 15. Bg4
{[%clk 0:02:22.9]} 15... Nc5 {[%clk 0:02:38.1]} 16. e5 {[%clk 0:02:07.5]} 16...
f5 {[%clk 0:02:37.7]} 17. exf6+ {[%clk 0:01:53.1]} 17... Rxf6 {[%clk 0:02:35.7]}
18. Nd5 {[%clk 0:01:50.6]} 18... Bxd5 {[%clk 0:02:28.6]} 19. cxd5 {[%clk
0:01:37.7]} 19... h5 {[%clk 0:02:07.5]} 20. Be2 {[%clk 0:01:35.7]} 20... Qb6
{[%clk 0:02:01.8]} 21. Rd4 {[%clk 0:00:51.4]} 21... Nd7 {[%clk 0:01:35.3]} 22.
Re4 {[%clk 0:00:46]} 22... Ne5 {[%clk 0:01:32]} 23. Bd1 {[%clk 0:00:36.1]} 23...
Raf8 {[%clk 0:01:29]} 24. g3 {[%clk 0:00:29.8]} 24... R8f7 {[%clk 0:01:12]} 25.
Kg2 {[%clk 0:00:28.2]} 25... Qb5 {[%clk 0:00:58.6]} 26. f4 {[%clk 0:00:24.7]}
26... Qxd5 {[%clk 0:00:53.6]} 27. Kh2 {[%clk 0:00:17.6]} 27... Nc6 {[%clk
0:00:44.3]} 28. Rfe1 {[%clk 0:00:16.3]} 28... h4 {[%clk 0:00:41.1]} 29. Qg2
{[%clk 0:00:08.9]} 29... hxg3+ {[%clk 0:00:38.2]} 30. Qxg3 {[%clk 0:00:09.8]}
30... Nd4 {[%clk 0:00:35.5]} 31. Qf2 {[%clk 0:00:03.6]} 31... e5 {[%clk
0:00:32.2]} 32. Qg3 {[%clk 0:00:03]} 32... exf4 {[%clk 0:00:29.7]} 33. Qf2
{[%clk 0:00:02.7]} 33... f3 {[%clk 0:00:27.1]} 34. Rxd4 {[%clk 0:00:02]} 34...
Qxa2 {[%clk 0:00:22]} 35. Rg4 {[%clk 0:00:01.9]} 35... Qd5 {[%clk 0:00:19.6]}
36. Reg1 {[%clk 0:00:02.5]} 36... Qe5+ {[%clk 0:00:19.6]} 37. R1g3 {[%clk
0:00:02.3]} 37... d5 {[%clk 0:00:18.4]} 38. Bc2 {[%clk 0:00:02.9]} 38... Kf8
{[%clk 0:00:18.6]} 39. Kg1 {[%clk 0:00:02.9]} 39... Re6 {[%clk 0:00:17.7]} 40.
Bxg6 {[%clk 0:00:03.2]} 40... Rff6 {[%clk 0:00:12.4]} 41. Rxf3 {[%clk
0:00:03.6]} 41... Qe1+ {[%clk 0:00:06.1]} 42. Qxe1 {[%clk 0:00:03.4]} 42...
Rxe1+ {[%clk 0:00:07]} 43. Kg2 {[%clk 0:00:04.1]} 43... Re2+ {[%clk 0:00:06.1]}
44. Kg3 {[%clk 0:00:04.6]} 44... Rxf3+ {[%clk 0:00:06.4]} 45. Kxf3 {[%clk
0:00:05.5]} 45... Rxb2 {[%clk 0:00:07.2]} 46. Rg5 {[%clk 0:00:05.9]} 46... Rd2
{[%clk 0:00:05.1]} 47. h4 {[%clk 0:00:05.5]} 47... Ke7 {[%clk 0:00:05.1]} 48. h5
{[%clk 0:00:05.7]} 48... Kf6 {[%clk 0:00:05.7]} 49. Rf5+ {[%clk 0:00:06]} 49...
Ke6 {[%clk 0:00:05.7]} 50. Rf8 {[%clk 0:00:06.3]} 50... Rh2 {[%clk 0:00:05.9]}
51. Kg3 {[%clk 0:00:05.9]} 51... Rh1 {[%clk 0:00:06]} 52. Ra8 {[%clk 0:00:04.8]}
52... b6 {[%clk 0:00:05.8]} 53. Ra6 {[%clk 0:00:05.1]} 53... Kd6 {[%clk
0:00:05.9]} 54. Rxb6+ {[%clk 0:00:05.3]} 54... Kc5 {[%clk 0:00:06.6]} 55. Ra6
{[%clk 0:00:05.9]} 55... Kb5 {[%clk 0:00:07.2]} 56. Rd6 {[%clk 0:00:06]} 56...
Kc5 {[%clk 0:00:07.1]} 57. Rd8 {[%clk 0:00:06.7]} 57... a4 {[%clk 0:00:07.4]}
58. Bf7 {[%clk 0:00:07.2]} 58... d4 {[%clk 0:00:08]} 59. Rd5+ {[%clk 0:00:07.3]}
59... Kc4 {[%clk 0:00:07]} 60. h6 {[%clk 0:00:06.9]} 60... Kc3 {[%clk
0:00:05.6]} 61. Rc5+ {[%clk 0:00:07]} 61... Kb2 {[%clk 0:00:05.4]} 62. Bh5
{[%clk 0:00:07.2]} 62... d3 {[%clk 0:00:04.7]} 63. h7 {[%clk 0:00:07.5]} 63...
d2 {[%clk 0:00:05]} 64. h8=Q+ {[%clk 0:00:07.8]} 1-0

[Event "*** Titled Tuesday Blitz"]
[Site "Chess.com"]
[Date "2020.11.03"]
[Round "2"]
[White "Politov_Pavel"]
[Black "Frogo47"]
[Result "1-0"]
[WhiteElo "2284"]
[BlackElo "2438"]
[TimeControl "180+1"]
[EndTime "10:20:11 PST"]
[Termination "Politov_Pavel won by resignation"]

1. d4 {[%clk 0:02:55.5]} 1... Nf6 {[%clk 0:02:59.1]} 2. c4 {[%clk 0:02:55.2]}
2... g6 {[%clk 0:02:59.6]} 3. Nc3 {[%clk 0:02:55]} 3... d5 {[%clk 0:03:00.2]} 4.
cxd5 {[%clk 0:02:55]} 4... Nxd5 {[%clk 0:03:00.2]} 5. e4 {[%clk 0:02:55.7]} 5...
Nxc3 {[%clk 0:03:00.7]} 6. bxc3 {[%clk 0:02:56.6]} 6... Bg7 {[%clk 0:03:01.3]}
7. Nf3 {[%clk 0:02:55.8]} 7... c5 {[%clk 0:03:01.5]} 8. Be2 {[%clk 0:02:55.1]}
8... O-O {[%clk 0:03:02.4]} 9. Rb1 {[%clk 0:02:54.9]} 9... b6 {[%clk 0:03:02.6]}
10. O-O {[%clk 0:02:52.8]} 10... Bb7 {[%clk 0:03:02.6]} 11. d5 {[%clk
0:02:53.3]} 11... Bxc3 {[%clk 0:03:01.9]} 12. Bc4 {[%clk 0:02:48.8]} 12... Bg7
{[%clk 0:03:01.4]} 13. Qe2 {[%clk 0:02:46]} 13... Qc8 {[%clk 0:03:01.5]} 14. Bg5
{[%clk 0:02:20.3]} 14... Re8 {[%clk 0:02:58.8]} 15. e5 {[%clk 0:02:17]} 15...
Ba6 {[%clk 0:02:55]} 16. e6 {[%clk 0:02:15.3]} 16... fxe6 {[%clk 0:02:49.2]} 17.
Rfe1 {[%clk 0:02:15.4]} 17... Bxc4 {[%clk 0:02:45.3]} 18. Qxc4 {[%clk
0:02:15.1]} 18... Qa6 {[%clk 0:02:44.9]} 19. Qe4 {[%clk 0:02:07]} 19... Qc8
{[%clk 0:02:35.7]} 20. Qc4 {[%clk 0:02:07.2]} 20... Qa6 {[%clk 0:02:15.7]} 21.
Rb5 {[%clk 0:02:06.3]} 21... Nd7 {[%clk 0:02:13.7]} 22. Rxe6 {[%clk 0:01:58.8]}
22... Nf6 {[%clk 0:02:12.3]} 23. d6 {[%clk 0:01:56]} 23... Kh8 {[%clk
0:02:09.9]} 24. dxe7 {[%clk 0:01:51]} 24... Nd5 {[%clk 0:02:02.3]} 25. Ne5
{[%clk 0:01:33.3]} 25... Nc3 {[%clk 0:01:28.6]} 26. Nf7+ {[%clk 0:00:46.2]}
26... Kg8 {[%clk 0:01:27.3]} 27. Nh6+ {[%clk 0:00:46.7]} 27... Kh8 {[%clk
0:01:27.6]} 28. Re3 {[%clk 0:00:46.7]} 28... Qxa2 {[%clk 0:01:19.7]} 29. Rxc3
{[%clk 0:00:46.5]} 29... Qxc4 {[%clk 0:01:16.4]} 30. Rxc4 {[%clk 0:00:47.4]}
30... Bxh6 {[%clk 0:01:17]} 31. Bxh6 {[%clk 0:00:45]} 31... Rxe7 {[%clk
0:01:17.9]} 32. Kf1 {[%clk 0:00:39.8]} 32... Rd7 {[%clk 0:01:14.6]} 33. Ra4
{[%clk 0:00:36.5]} 33... Re8 {[%clk 0:01:08.2]} 34. Be3 {[%clk 0:00:35.9]} 34...
Kg8 {[%clk 0:01:07.2]} 35. h4 {[%clk 0:00:33.3]} 35... Kf7 {[%clk 0:01:06.6]}
36. Rb3 {[%clk 0:00:29.2]} 36... h5 {[%clk 0:01:03.4]} 37. Rba3 {[%clk
0:00:24.2]} 37... Ra8 {[%clk 0:01:02.7]} 38. Ra6 {[%clk 0:00:23.1]} 38... Ke7
{[%clk 0:00:57.5]} 39. Rxb6 {[%clk 0:00:22.2]} 39... axb6 {[%clk 0:00:57.4]} 40.
Rxa8 {[%clk 0:00:23.1]} 40... Rb7 {[%clk 0:00:56.2]} 41. Rh8 {[%clk 0:00:18.7]}
41... Kf6 {[%clk 0:00:55.1]} 42. Rc8 {[%clk 0:00:15.4]} 42... Kf5 {[%clk
0:00:49.7]} 43. f3 {[%clk 0:00:15.4]} 43... Ke5 {[%clk 0:00:49.1]} 44. Ke2
{[%clk 0:00:14.1]} 44... Kd5 {[%clk 0:00:48.9]} 45. g4 {[%clk 0:00:14.4]} 45...
Kc4 {[%clk 0:00:48]} 46. gxh5 {[%clk 0:00:13]} 46... gxh5 {[%clk 0:00:48.9]} 47.
f4 {[%clk 0:00:13.4]} 47... Rg7 {[%clk 0:00:48.2]} 48. f5 {[%clk 0:00:13.2]}
48... Rf7 {[%clk 0:00:47]} 49. Rc6 {[%clk 0:00:10.4]} 49... Rxf5 {[%clk
0:00:45.6]} 50. Rxb6 {[%clk 0:00:10.9]} 50... Re5 {[%clk 0:00:43.4]} 51. Rc6
{[%clk 0:00:11.2]} 51... Kb5 {[%clk 0:00:42.9]} 52. Rc8 {[%clk 0:00:11.3]} 52...
c4 {[%clk 0:00:42]} 53. Kf3 {[%clk 0:00:11.8]} 53... Rf5+ {[%clk 0:00:38.6]} 54.
Ke4 {[%clk 0:00:11.6]} 54... Rf1 {[%clk 0:00:37.4]} 55. Bg5 {[%clk 0:00:11]}
55... Re1+ {[%clk 0:00:34.8]} 56. Kf5 {[%clk 0:00:10.9]} 56... Kb4 {[%clk
0:00:28.8]} 57. Kg6 {[%clk 0:00:11.1]} 57... Rg1 {[%clk 0:00:27.7]} 58. Kxh5
{[%clk 0:00:10.8]} 58... c3 {[%clk 0:00:28]} 59. Kg6 {[%clk 0:00:11.2]} 59...
Kb3 {[%clk 0:00:26.7]} 60. h5 {[%clk 0:00:11.6]} 60... c2 {[%clk 0:00:27]} 61.
h6 {[%clk 0:00:12]} 61... Rd1 {[%clk 0:00:25.9]} 62. h7 {[%clk 0:00:12]} 62...
Rd6+ {[%clk 0:00:25.4]} 63. Bf6 {[%clk 0:00:12]} 63... Rd7 {[%clk 0:00:20.4]}
64. h8=Q {[%clk 0:00:12.1]} 64... c1=Q {[%clk 0:00:20.2]} 65. Rxc1 {[%clk
0:00:11.3]} 65... Rd5 {[%clk 0:00:20]} 66. Qg8 {[%clk 0:00:10.8]} 1-0

[Event "*** Titled Tuesday Blitz"]
[Site "Chess.com"]
[Date "2020.11.03"]
[Round "2"]
[White "CrazyMartian"]
[Black "esskeettit"]
[Result "1-0"]
[WhiteElo "2313"]
[BlackElo "2457"]
[TimeControl "180+1"]
[EndTime "10:20:12 PST"]
[Termination "CrazyMartian won by resignation"]

1. d4 {[%clk 0:03:00.9]} 1... Nf6 {[%clk 0:02:59.6]} 2. Bf4 {[%clk 0:02:59.8]}
2... e6 {[%clk 0:02:59.5]} 3. e3 {[%clk 0:02:56.6]} 3... d5 {[%clk 0:02:57.9]}
4. Nd2 {[%clk 0:02:56.4]} 4... c5 {[%clk 0:02:47.7]} 5. c3 {[%clk 0:02:56.1]}
5... Nc6 {[%clk 0:02:47.7]} 6. Ngf3 {[%clk 0:02:55.5]} 6... Bd6 {[%clk
0:02:46.9]} 7. Bg3 {[%clk 0:02:55.7]} 7... O-O {[%clk 0:02:42.3]} 8. Bd3 {[%clk
0:02:56.1]} 8... b6 {[%clk 0:02:42.5]} 9. e4 {[%clk 0:02:50.3]} 9... dxe4 {[%clk
0:02:17.3]} 10. Nxe4 {[%clk 0:02:45.7]} 10... Nxe4 {[%clk 0:02:11.3]} 11. Bxe4
{[%clk 0:02:44.2]} 11... Bb7 {[%clk 0:02:10.9]} 12. dxc5 {[%clk 0:02:31.3]}
12... Bxc5 {[%clk 0:02:05.6]} 13. O-O {[%clk 0:02:27.3]} 13... Qxd1 {[%clk
0:01:51.1]} 14. Rfxd1 {[%clk 0:02:26.3]} 14... Rad8 {[%clk 0:01:50.4]} 15. b4
{[%clk 0:02:01.5]} 15... Be7 {[%clk 0:01:49.6]} 16. b5 {[%clk 0:01:55.1]} 16...
Na5 {[%clk 0:01:48.9]} 17. Bxb7 {[%clk 0:01:54.9]} 17... Nxb7 {[%clk 0:01:49]}
18. Nd4 {[%clk 0:01:48.3]} 18... Bf6 {[%clk 0:01:36.7]} 19. Nc6 {[%clk
0:01:43.5]} 19... Rxd1+ {[%clk 0:01:34.4]} 20. Rxd1 {[%clk 0:01:44.4]} 20...
Bxc3 {[%clk 0:01:35]} 21. Rd7 {[%clk 0:01:42.5]} 21... Nc5 {[%clk 0:01:23.7]}
22. Rxa7 {[%clk 0:01:42.4]} 22... h5 {[%clk 0:01:20.6]} 23. h4 {[%clk
0:01:42.1]} 23... g6 {[%clk 0:01:10]} 24. a4 {[%clk 0:01:37.2]} 24... Re8 {[%clk
0:00:51.9]} 25. Bc7 {[%clk 0:01:23.3]} 25... Nd7 {[%clk 0:00:45.4]} 26. Bd6
{[%clk 0:01:22.8]} 26... Nf6 {[%clk 0:00:40.5]} 27. Be5 {[%clk 0:01:21.1]} 27...
Bxe5 {[%clk 0:00:38.9]} 28. Nxe5 {[%clk 0:01:22]} 28... Rd8 {[%clk 0:00:36.5]}
29. f3 {[%clk 0:01:12.5]} 29... Rd1+ {[%clk 0:00:34.6]} 30. Kh2 {[%clk
0:01:12.2]} 30... Rd4 {[%clk 0:00:33.2]} 31. Nxf7 {[%clk 0:01:07]} 31... Rxh4+
{[%clk 0:00:31.5]} 32. Kg3 {[%clk 0:01:07.4]} 32... Rd4 {[%clk 0:00:29.5]} 33.
Ng5 {[%clk 0:01:03.9]} 33... e5 {[%clk 0:00:26.2]} 34. Ne6 {[%clk 0:00:47.5]}
34... Rd6 {[%clk 0:00:25.6]} 35. Ng5 {[%clk 0:00:46.4]} 35... Rd4 {[%clk
0:00:24.3]} 36. Re7 {[%clk 0:00:42.2]} 36... Rxa4 {[%clk 0:00:22]} 37. Rxe5
{[%clk 0:00:40.7]} 37... Rb4 {[%clk 0:00:20.1]} 38. Re6 {[%clk 0:00:39.3]} 38...
h4+ {[%clk 0:00:17.3]} 39. Kh2 {[%clk 0:00:36]} 39... Nd5 {[%clk 0:00:12.4]} 40.
Rxg6+ {[%clk 0:00:34.9]} 40... Kf8 {[%clk 0:00:13.3]} 41. Ne6+ {[%clk
0:00:27.6]} 41... Kf7 {[%clk 0:00:13]} 42. Rh6 {[%clk 0:00:24.4]} 42... Rxb5
{[%clk 0:00:11.8]} 43. Nd4 {[%clk 0:00:19.9]} 43... Rb2 {[%clk 0:00:11]} 44.
Rxh4 {[%clk 0:00:18.9]} 44... Ne3 {[%clk 0:00:10.7]} 45. Rf4+ {[%clk 0:00:18.6]}
45... Kg6 {[%clk 0:00:10.5]} 46. Kh3 {[%clk 0:00:17.4]} 46... Kg5 {[%clk
0:00:06.6]} 47. Re4 {[%clk 0:00:17.1]} 47... Nf1 {[%clk 0:00:03]} 48. f4+ {[%clk
0:00:14.5]} 48... Kf6 {[%clk 0:00:02.8]} 49. Nf3 {[%clk 0:00:12.8]} 49... b5
{[%clk 0:00:02.3]} 50. Re5 {[%clk 0:00:12.7]} 50... b4 {[%clk 0:00:02.3]} 51.
Rb5 {[%clk 0:00:12.9]} 51... b3 {[%clk 0:00:02.5]} 52. g3 {[%clk 0:00:12.1]}
52... Ne3 {[%clk 0:00:03.2]} 53. Rb6+ {[%clk 0:00:10.8]} 53... Kf7 {[%clk
0:00:03]} 54. g4 {[%clk 0:00:10.4]} 54... Rb1 {[%clk 0:00:02.5]} 55. Nd4 {[%clk
0:00:09.6]} 55... Rh1+ {[%clk 0:00:03.2]} 56. Kg3 {[%clk 0:00:09.4]} 56... Rg1+
{[%clk 0:00:03.4]} 57. Kf3 {[%clk 0:00:09.2]} 57... Rxg4 {[%clk 0:00:03.6]} 58.
Rxb3 {[%clk 0:00:09]} 58... Nd5 {[%clk 0:00:02.8]} 59. Rb7+ {[%clk 0:00:09.9]}
59... Kg6 {[%clk 0:00:02.6]} 60. Kxg4 {[%clk 0:00:10.3]} 60... Nf6+ {[%clk
0:00:03.5]} 61. Kf3 {[%clk 0:00:10.1]} 61... Ne4 {[%clk 0:00:04.4]} 62. Rb6+
{[%clk 0:00:10.3]} 1-0

[Event "*** Titled Tuesday Blitz"]
[Site "Chess.com"]
[Date "2020.11.03"]
[Round "2"]
[White "cassoulet"]
[Black "MashaFromRussia"]
[Result "1/2-1/2"]
[WhiteElo "2612"]
[BlackElo "2339"]
[TimeControl "180+1"]
[EndTime "10:20:14 PST"]
[Termination "Game drawn - insufficient material"]

1. e4 {[%clk 0:03:00]} 1... c5 {[%clk 0:02:59.1]} 2. Nc3 {[%clk 0:02:59.4]} 2...
Nc6 {[%clk 0:02:54]} 3. Bb5 {[%clk 0:02:58.5]} 3... Nd4 {[%clk 0:02:52.4]} 4.
Nf3 {[%clk 0:02:57]} 4... Nxb5 {[%clk 0:02:48.6]} 5. Nxb5 {[%clk 0:02:57.9]}
5... d6 {[%clk 0:02:49]} 6. O-O {[%clk 0:02:57.6]} 6... Nf6 {[%clk 0:02:48.5]}
7. Re1 {[%clk 0:02:57.1]} 7... e5 {[%clk 0:02:46.6]} 8. c3 {[%clk 0:02:56.6]}
8... a6 {[%clk 0:02:41.7]} 9. Na3 {[%clk 0:02:56.5]} 9... Be7 {[%clk 0:02:33.9]}
10. d4 {[%clk 0:02:57.4]} 10... cxd4 {[%clk 0:02:32.1]} 11. cxd4 {[%clk
0:02:52.3]} 11... exd4 {[%clk 0:02:31.7]} 12. Nxd4 {[%clk 0:02:51.9]} 12... O-O
{[%clk 0:02:31]} 13. Bg5 {[%clk 0:02:20.2]} 13... h6 {[%clk 0:02:27.9]} 14. Bh4
{[%clk 0:02:15.7]} 14... Bg4 {[%clk 0:02:27.9]} 15. Qd3 {[%clk 0:02:13.6]} 15...
Rc8 {[%clk 0:02:24.3]} 16. h3 {[%clk 0:02:11.1]} 16... Bh5 {[%clk 0:02:23.8]}
17. Nf5 {[%clk 0:02:07]} 17... Bg6 {[%clk 0:02:21.2]} 18. Nxe7+ {[%clk
0:02:02.8]} 18... Qxe7 {[%clk 0:02:20.5]} 19. Qd4 {[%clk 0:02:02.2]} 19... Qe5
{[%clk 0:02:20.4]} 20. Bxf6 {[%clk 0:01:58.8]} 20... Qxf6 {[%clk 0:02:20.2]} 21.
Qxf6 {[%clk 0:01:58.1]} 21... gxf6 {[%clk 0:02:21.1]} 22. Rad1 {[%clk
0:01:58.5]} 22... Rc6 {[%clk 0:02:18.1]} 23. b3 {[%clk 0:01:56.7]} 23... b5
{[%clk 0:02:17.1]} 24. Rd2 {[%clk 0:01:55]} 24... Rfc8 {[%clk 0:02:16.3]} 25. g4
{[%clk 0:01:54.6]} 25... Rc1 {[%clk 0:02:09]} 26. Rxc1 {[%clk 0:01:53]} 26...
Rxc1+ {[%clk 0:02:09.9]} 27. Kg2 {[%clk 0:01:50.1]} 27... Bxe4+ {[%clk 0:02:10]}
28. f3 {[%clk 0:01:50.3]} 28... Bg6 {[%clk 0:02:02.5]} 29. Rxd6 {[%clk
0:01:45.2]} 29... Rb1 {[%clk 0:01:58.8]} 30. Rxa6 {[%clk 0:01:40.8]} 30... Rb2+
{[%clk 0:01:56.4]} 31. Kg3 {[%clk 0:01:41.1]} 31... Rxa2 {[%clk 0:01:55.1]} 32.
b4 {[%clk 0:01:40.9]} 32... Bd3 {[%clk 0:01:45.7]} 33. Ra5 {[%clk 0:01:38.3]}
33... Kg7 {[%clk 0:01:32.7]} 34. Kf4 {[%clk 0:01:38.3]} 34... Kg6 {[%clk
0:01:32.1]} 35. Ke3 {[%clk 0:01:38.1]} 35... Bf1 {[%clk 0:01:30.7]} 36. Nb1
{[%clk 0:01:34.7]} 36... Re2+ {[%clk 0:01:15.2]} 37. Kf4 {[%clk 0:01:34.4]}
37... Rb2 {[%clk 0:01:14.3]} 38. Nc3 {[%clk 0:01:33.4]} 38... Rxb4+ {[%clk
0:01:14]} 39. Kg3 {[%clk 0:01:33.2]} 39... Rb3 {[%clk 0:01:08.1]} 40. Ne4 {[%clk
0:01:32.9]} 40... Be2 {[%clk 0:01:05.5]} 41. Nd2 {[%clk 0:01:33]} 41... Rd3
{[%clk 0:01:02.3]} 42. Ra2 {[%clk 0:01:33.1]} 42... Bd1 {[%clk 0:00:56.4]} 43.
Rb2 {[%clk 0:01:32.7]} 43... b4 {[%clk 0:00:54.6]} 44. Kf4 {[%clk 0:01:32.4]}
44... b3 {[%clk 0:00:53.4]} 45. Ke4 {[%clk 0:01:31.5]} 45... Rc3 {[%clk
0:00:30]} 46. Kf4 {[%clk 0:01:10.1]} 46... Rc2 {[%clk 0:00:23.9]} 47. Rxc2
{[%clk 0:01:07]} 47... Bxc2 {[%clk 0:00:24.8]} 48. Nc4 {[%clk 0:01:06.5]} 48...
Kg7 {[%clk 0:00:22.4]} 49. Ke3 {[%clk 0:01:04.8]} 49... Kf8 {[%clk 0:00:20.3]}
50. Kd2 {[%clk 0:01:03.9]} 50... Ke7 {[%clk 0:00:20.8]} 51. Ne3 {[%clk
0:01:03.3]} 51... Ke6 {[%clk 0:00:13.9]} 52. f4 {[%clk 0:01:01.3]} 52... Be4
{[%clk 0:00:10]} 53. Kc3 {[%clk 0:00:57.4]} 53... Bd5 {[%clk 0:00:10.2]} 54. Nf5
{[%clk 0:00:57.3]} 54... Bg2 {[%clk 0:00:06.3]} 55. h4 {[%clk 0:00:57.5]} 55...
Bf3 {[%clk 0:00:05.8]} 56. Nd4+ {[%clk 0:00:57.2]} 56... Kd5 {[%clk 0:00:05.3]}
57. Nxf3 {[%clk 0:00:58.1]} 57... Ke4 {[%clk 0:00:05.9]} 58. g5 {[%clk
0:00:57.5]} 58... fxg5 {[%clk 0:00:03.4]} 59. fxg5 {[%clk 0:00:58.4]} 59... hxg5
{[%clk 0:00:02.4]} 60. Nxg5+ {[%clk 0:00:59.3]} 60... Kf5 {[%clk 0:00:02.8]} 61.
Kxb3 {[%clk 0:00:57.2]} 61... Kg4 {[%clk 0:00:03.4]} 62. Nf3 {[%clk 0:00:57.2]}
62... f5 {[%clk 0:00:03.2]} 63. Kc4 {[%clk 0:00:57.2]} 63... f4 {[%clk
0:00:02.3]} 64. Kd4 {[%clk 0:00:56.8]} 64... Kxf3 {[%clk 0:00:02.9]} 65. h5
{[%clk 0:00:57.3]} 65... Kg2 {[%clk 0:00:03.3]} 66. h6 {[%clk 0:00:58.2]} 66...
f3 {[%clk 0:00:03.9]} 67. h7 {[%clk 0:00:58.4]} 67... f2 {[%clk 0:00:04.5]} 68.
h8=Q {[%clk 0:00:58.2]} 68... f1=Q {[%clk 0:00:05.4]} 69. Qg7+ {[%clk
0:00:58.4]} 69... Kf2 {[%clk 0:00:05.9]} 70. Qf6+ {[%clk 0:00:57.4]} 70... Ke2
{[%clk 0:00:06.4]} 71. Qa6+ {[%clk 0:00:57.1]} 71... Kf2 {[%clk 0:00:07]} 72.
Qf6+ {[%clk 0:00:56.1]} 72... Kg2 {[%clk 0:00:07]} 73. Qg5+ {[%clk 0:00:56.2]}
73... Kf2 {[%clk 0:00:07.4]} 74. Qe3+ {[%clk 0:00:55.7]} 74... Kg2 {[%clk
0:00:07.7]} 75. Qg5+ {[%clk 0:00:55.1]} 75... Kf2 {[%clk 0:00:08.1]} 76. Qh4+
{[%clk 0:00:55.7]} 76... Kg2 {[%clk 0:00:08.4]} 77. Qg4+ {[%clk 0:00:55.7]}
77... Kf2 {[%clk 0:00:09]} 78. Qf4+ {[%clk 0:00:54.1]} 78... Kg2 {[%clk
0:00:09.4]} 79. Qxf1+ {[%clk 0:00:54.3]} 79... Kxf1 {[%clk 0:00:09.2]} 1/2-1/2